bitfinex/quotes_BTCUSD_20230120
["timestamp","ask_amount","ask_price","bid_price","bid_amount"]
[1674197588887,0.4971695,20967.0,20966.0,0.00463233]
[1674197589463,1.25900315,20967.0,20966.0,0.00463233]
[1674197590242,1.08806655,20967.0,20966.0,0.00463233]
[1674197590806,1.20229092,20967.0,20966.0,1e-08]
[1674197591045,2.02903196,20967.0,20966.0,1e-08]
[1674197591302,1.20229092,20967.0,20965.0,0.00955847]
[1674197591556,0.4899075,20966.0,20965.0,0.00955847]
[1674197591824,0.7001855,20966.0,20965.0,0.00955847]
[1674197592170,1.1771475,20966.0,20965.0,0.00955847]
[1674197592355,1.00602918,20966.0,20965.0,0.00955847]
[1674197592641,1.01402918,20966.0,20965.0,0.01155847]
[1674197593169,0.8999503,20966.0,20965.0,0.01155847]
[1674197594193,1.49099118,20966.0,20965.0,0.01155847]
[1674197594452,1.76758887,20966.0,20965.0,0.01155847]
[1674197594968,1.65350999,20966.0,20965.0,0.01155847]
[1674197595513,1.44879969,20966.0,20965.0,0.01155847]
[1674197595804,1.93149908,20966.0,20965.0,0.01155847]
[1674197596371,1.93146244,20966.0,20965.0,0.01155847]
[1674197596940,1.48374643,20966.0,20965.0,0.01155847]
[1674197597208,1.36976647,20966.0,20965.0,0.01155847]
[1674197598990,1.48374643,20966.0,20965.0,0.01155847]
[1674197600305,1.36976647,20966.0,20965.0,0.01155847]
[1674197602663,1.4242559,20966.0,20965.0,0.01155847]
[1674197602923,1.67705526,20966.0,20965.0,0.01155847]
[1674197604221,1.4242559,20966.0,20965.0,0.01155847]
[1674197605812,1.53823586,20966.0,20965.0,0.01155847]
[1674197606335,1.4242559,20966.0,20965.0,0.01155847]
[1674197609584,1.172202,20966.0,20965.0,0.01155847]
[1674197609854,1.37264639,20966.0,20965.0,0.01155847]
[1674197610124,1.48662635,20966.0,20965.0,0.01155847]
[1674197610391,2.16580029,20966.0,20965.0,0.01138522]
[1674197610643,2.4532215,20966.0,20965.0,0.01138522]
[1674197610876,2.28210318,20966.0,20965.0,0.01138522]
[1674197611124,1.99468197,20966.0,20965.0,0.01138522]
[1674197611627,2.20180893,20966.0,20965.0,0.01138522]
[1674197611883,2.08262933,20966.0,20965.0,0.01138522]
[1674197612133,2.19660929,20966.0,20965.0,0.01138522]
[1674197612919,2.31010929,20966.0,20965.0,0.01138522]
[1674197613414,2.19612933,20966.0,20965.0,0.01138522]
[1674197613950,1.38262932,20966.0,20965.0,0.01138522]
[1674197615608,1.17235132,20966.0,20965.0,0.01138522]
[1674197615818,1.16385132,20966.0,20965.0,0.01138522]
[1674197616110,0.68688932,20966.0,20965.0,0.01138522]
[1674197616367,0.008,20966.0,20965.0,0.63372208]
[1674197617201,0.008,20966.0,20965.0,0.73372208]
[1674197617471,0.008,20966.0,20965.0,1.21070708]
[1674197618535,0.008,20966.0,20965.0,1.54044708]
[1674197618802,0.008,20966.0,20965.0,1.55031808]
[1674197619922,0.008,20966.0,20965.0,1.33792008]
[1674197620167,0.008,20966.0,20965.0,0.48837022]
[1674197620828,0.008,20966.0,20965.0,0.48337022]
[1674197621077,0.2177825,20966.0,20965.0,0.00638522]
[1674197621599,0.008,20966.0,20965.0,0.00638522]
[1674197622835,0.248,20966.0,20965.0,0.10638522]
[1674197623355,0.248,20966.0,20965.0,0.4749931]
[1674197626305,0.248,20966.0,20965.0,0.3749931]
[1674197626821,0.248,20966.0,20965.0,0.4749931]
[1674197627591,0.248,20966.0,20965.0,0.9519781]
[1674197629731,0.248,20966.0,20965.0,0.89205184]
[1674197630163,0.248,20966.0,20965.0,2.28122659]
[1674197631474,0.248,20966.0,20965.0,1.97254497]
[1674197631726,0.008,20966.0,20965.0,2.27254497]
[1674197632004,0.008,20966.0,20965.0,2.58122659]
[1674197633076,0.248,20966.0,20965.0,2.58122659]
[1674197633594,0.248,20966.0,20965.0,2.12231384]
[1674197634117,0.248,20966.0,20965.0,2.73660391]
[1674197634371,0.248,20966.0,20965.0,2.23617059]
[1674197634626,0.248,20966.0,20965.0,2.5662346]
[1674197634888,0.248,20966.0,20965.0,2.12231384]
[1674197635253,0.248,20966.0,20965.0,0.00638522]
[1674197635254,0.67707379,20966.0,20965.0,0.00638522]
[1674197635442,1.65405158,20966.0,20965.0,0.00638522]
[1674197636524,1.420702,20966.0,20965.0,0.00638522]
[1674197636995,1.53468196,20966.0,20965.0,0.00638522]
[1674197637251,2.01291917,20966.0,20965.0,0.00638522]
[1674197637520,2.12689913,20966.0,20965.0,0.00638522]
[1674197637790,2.12689913,20966.0,20964.0,0.01239745]
[1674197637791,0.1,20965.0,20964.0,0.01239745]
[1674197638057,1.17597,20965.0,20964.0,0.01239745]
[1674197638325,1.386248,20965.0,20964.0,0.01239745]
[1674197638594,2.08434628,20965.0,20964.0,0.01239745]
[1674197638855,1.78424102,20965.0,20964.0,0.01339745]
[1674197639211,1.86524102,20965.0,20964.0,0.01339745]
[1674197639632,3.24537409,20965.0,20964.0,0.01339745]
[1674197639896,2.86437409,20965.0,20964.0,0.01239745]
[1674197640154,2.42512271,20965.0,20964.0,0.01239745]
[1674197640436,2.54754796,20965.0,20964.0,0.01239745]
[1674197640669,2.31124801,20965.0,20964.0,0.01239745]
[1674197640925,2.66087991,20965.0,20964.0,0.01239745]
[1674197641197,1.9608799,20965.0,20964.0,0.01239745]
[1674197641458,2.13199822,20965.0,20964.0,0.01239745]
[1674197641716,2.43199822,20965.0,20964.0,0.01239745]
[1674197641975,2.13199822,20965.0,20964.0,0.01239745]
[1674197642207,1.9608799,20965.0,20964.0,0.01239745]
[1674197642737,2.66087991,20965.0,20964.0,0.01239745]
[1674197643099,2.83199823,20965.0,20964.0,0.01239745]
[1674197643258,2.66087991,20965.0,20964.0,0.01239745]
[1674197644004,2.54887991,20965.0,20964.0,0.01239745]
[1674197644266,2.64587991,20965.0,20964.0,0.01239745]
[1674197644520,2.53200521,20965.0,20964.0,0.01239745]
[1674197644771,2.64587991,20965.0,20964.0,0.01239745]
[1674197645301,2.94587991,20965.0,20964.0,0.01239745]
[1674197645591,3.11699823,20965.0,20964.0,0.01239745]
[1674197645824,3.23130595,20965.0,20964.0,0.01239745]
[1674197646090,2.94579356,20965.0,20964.0,0.01239745]
[1674197646353,3.11691188,20965.0,20964.0,0.01239745]
[1674197646620,3.23130595,20965.0,20964.0,0.01239745]
[1674197646957,3.08150595,20965.0,20964.0,0.01239745]
[1674197647712,2.85332353,20965.0,20964.0,0.01239745]
[1674197647979,2.79597789,20965.0,20964.0,0.01239745]
[1674197648759,2.56022069,20965.0,20964.0,0.01239745]
[1674197649015,2.61756633,20965.0,20964.0,0.01239745]
[1674197650072,2.7312767,20965.0,20964.0,0.01239745]
[1674197650338,0.10401515,20963.0,20962.0,0.01238959]
[1674197650596,1.62030515,20963.0,20962.0,0.01238959]
[1674197650936,2.55297682,20963.0,20962.0,0.01238959]
[1674197651110,2.72689739,20963.0,20962.0,0.01238959]
[1674197651372,3.03557901,20963.0,20962.0,0.01238959]
[1674197651626,3.59746547,20963.0,20962.0,0.01238959]
[1674197651893,3.4268974,20963.0,20962.0,0.01238959]
[1674197652149,3.1268974,20963.0,20962.0,0.01238959]
[1674197652412,2.53058316,20963.0,20962.0,0.01238959]
[1674197652663,3.34997683,20963.0,20962.0,0.01238959]
[1674197652923,3.63425667,20963.0,20962.0,0.01238959]
[1674197653458,3.52048082,20963.0,20962.0,0.01238959]
[1674197653712,4.24093259,20963.0,20962.0,0.01238959]
[1674197654225,4.35470844,20963.0,20962.0,0.01238959]
[1674197654490,3.818603,20963.0,20962.0,0.01238959]
[1674197654845,2.98117044,20963.0,20962.0,0.01238959]
[1674197655021,3.01291122,20963.0,20962.0,0.20671056]
[1674197655288,2.93621122,20963.0,20962.0,0.01238959]
[1674197655555,2.13921121,20963.0,20962.0,0.01238959]
[1674197655813,2.23621121,20963.0,20962.0,0.01238959]
[1674197656143,2.13921121,20963.0,20962.0,0.01238959]
[1674197656341,1.27365121,20963.0,20962.0,0.01238959]
[1674197656596,1.17665121,20963.0,20962.0,0.01238959]
[1674197656848,1.27365121,20963.0,20962.0,0.01238959]
[1674197657103,1.17665121,20963.0,20962.0,0.01238959]
[1674197657354,1.27365121,20963.0,20962.0,0.01238959]
[1674197657626,1.17665121,20963.0,20962.0,0.01238959]
[1674197657882,1.27365121,20963.0,20962.0,0.01238959]
[1674197658145,1.17665121,20963.0,20962.0,0.01238959]
[1674197658425,1.14433837,20963.0,20962.0,0.01238959]
[1674197658755,1.35532223,20963.0,20962.0,0.01238959]
[1674197659491,1.45232223,20963.0,20962.0,0.01238959]
[1674197660269,1.72686837,20963.0,20962.0,0.01238959]
[1674197660525,2.26948895,20963.0,20962.0,0.01238959]
[1674197660779,2.02686837,20963.0,20962.0,0.01238959]
[1674197661327,1.81380315,20963.0,20962.0,0.01238959]
[1674197661524,1.57380315,20963.0,20962.0,0.01238959]
[1674197662657,2.45968142,20963.0,20962.0,0.01238959]
[1674197662835,2.53678142,20963.0,20962.0,0.01238959]
[1674197663083,2.55613298,20963.0,20962.0,0.01238959]
[1674197664096,2.49613298,20963.0,20962.0,0.01238959]
[1674197664345,1.79613297,20963.0,20962.0,0.01238959]
[1674197665117,1.79613297,20963.0,20962.0,0.05924273]
[1674197667738,0.20147164,20962.0,20961.0,0.01506243]
[1674197667968,1.45105564,20962.0,20961.0,0.01506243]
[1674197668987,1.37435564,20962.0,20961.0,0.01506243]
[1674197669515,1.47135564,20962.0,20961.0,0.01506243]
[1674197673133,1.37435564,20962.0,20961.0,0.01506243]
[1674197673385,1.261384,20962.0,20961.0,0.01506243]
[1674197673647,0.93973552,20963.0,20961.0,0.01506243]
[1674197673924,0.307278,20962.0,20961.0,0.01506243]
[1674197674975,0.210278,20962.0,20961.0,0.01506243]
[1674197675214,0.307278,20962.0,20961.0,0.01506243]
[1674197675468,0.210278,20962.0,20961.0,0.01506243]
[1674197675891,0.097,20962.0,20961.0,0.01506243]
[1674197676108,0.307278,20962.0,20961.0,0.01506243]
[1674197677431,0.75156203,20962.0,20961.0,0.01506243]
[1674197677684,0.86514931,20962.0,20961.0,0.01506243]
[1674197678467,1.14955392,20962.0,20961.0,0.01506243]
[1674197678722,0.9221301,20962.0,20961.0,0.01506243]
[1674197678974,1.14955392,20962.0,20961.0,0.01506243]
[1674197679225,1.03612097,20962.0,20961.0,0.01506243]
[1674197679480,0.8125595,20962.0,20961.0,0.01506243]
[1674197680497,0.81256609,20962.0,20961.0,0.01506243]
[1674197682238,0.69856863,20962.0,20961.0,0.01506243]
[1674197682838,0.92599245,20962.0,20961.0,0.01506243]
[1674197683068,0.82899245,20962.0,20961.0,0.01506243]
[1674197683327,1.34025285,20962.0,20961.0,0.01506243]
[1674197683586,1.33947716,20962.0,20961.0,0.01411003]
[1674197683847,1.68610634,20962.0,20961.0,0.01316126]
[1674197684089,1.80012089,20962.0,20961.0,0.01316126]
[1674197684849,1.80012176,20962.0,20961.0,0.01316126]
[1674197685102,1.92610634,20962.0,20961.0,0.01316126]
[1674197685868,2.15353016,20962.0,20961.0,0.01316126]
[1674197687159,1.98253455,20962.0,20961.0,0.01316126]
[1674197687410,2.15358739,20962.0,20961.0,0.01316126]
[1674197689245,2.15359557,20962.0,20961.0,0.01316126]
[1674197689565,2.79304469,20962.0,20961.0,0.01316126]
[1674197689758,2.80154469,20962.0,20961.0,0.01316126]
[1674197690230,2.57412087,20962.0,20961.0,0.01316126]
[1674197690453,3.52842141,20962.0,20961.0,0.01316126]
[1674197691216,2.80218224,20962.0,20961.0,0.01316126]
[1674197691699,2.56218224,20962.0,20961.0,0.01316126]
[1674197692211,2.27695421,20962.0,20961.0,0.01316126]
[1674197692461,1.92272181,20962.0,20961.0,0.01316126]
[1674197692744,1.82572181,20962.0,20961.0,0.01316126]
[1674197692990,1.32313715,20962.0,20961.0,0.01316126]
[1674197693264,1.15208744,20962.0,20961.0,0.01316126]
[1674197694208,1.05508744,20962.0,20961.0,0.01316126]
[1674197694461,0.56100473,20962.0,20961.0,0.01316126]
[1674197694722,0.67503444,20962.0,20961.0,0.01316126]
[1674197695735,0.91503444,20962.0,20961.0,0.01316126]
[1674197700604,0.80100473,20962.0,20961.0,0.01316126]
[1674197700859,0.91503444,20962.0,20961.0,0.01316126]
[1674197701154,0.70475644,20962.0,20961.0,0.01316126]
[1674197701391,1.08608415,20962.0,20961.0,0.01316126]
[1674197704028,1.0290661,20962.0,20961.0,1e-08]
[1674197704538,1.20010392,20962.0,20961.0,1e-08]
[1674197704816,1.20011209,20962.0,20961.0,1e-08]
[1674197706890,1.20009471,20962.0,20961.0,1e-08]
[1674197707114,1.20009474,20962.0,20961.0,1e-08]
[1674197707462,1.0290661,20962.0,20961.0,1e-08]
[1674197707653,1.20009506,20962.0,20961.0,1e-08]
[1674197708759,1.49173987,20962.0,20961.0,1e-08]
[1674197708987,2.44584587,20962.0,20961.0,1e-08]
[1674197709464,2.27481691,20962.0,20961.0,1e-08]
[1674197710411,2.44581006,20962.0,20961.0,1e-08]
[1674197710665,2.45431006,20962.0,20961.0,1e-08]
[1674197710885,2.16266525,20962.0,20961.0,1e-08]
[1674197711455,3.54170082,20962.0,20961.0,1e-08]
[1674197713021,3.55840082,20962.0,20961.0,1e-08]
[1674197713276,3.65540082,20962.0,20961.0,1e-08]
[1674197713495,4.04100301,20962.0,20961.0,1e-08]
[1674197713782,4.13800301,20962.0,20961.0,1e-08]
[1674197714040,4.74100302,20962.0,20961.0,1e-08]
[1674197715102,4.83800302,20962.0,20961.0,1e-08]
[1674197715388,4.74100302,20962.0,20961.0,1e-08]
[1674197715647,4.83800302,20962.0,20961.0,1e-08]
[1674197720019,4.78702748,20962.0,20960.0,0.0132451]
[1674197720374,1.21702353,20961.0,20960.0,0.0132451]
[1674197720375,1.91702354,20961.0,20960.0,0.0132451]
[1674197720670,3.43741977,20961.0,20960.0,0.0132451]
[1674197720919,3.20963042,20961.0,20960.0,0.0132451]
[1674197721175,3.43739727,20961.0,20960.0,0.0132451]
[1674197721436,4.03584776,20961.0,20960.0,0.0132451]
[1674197721695,3.08145354,20961.0,20960.0,0.0132451]
[1674197721961,4.03584113,20961.0,20960.0,0.0132451]
[1674197722218,4.03584153,20961.0,20960.0,0.0132451]
[1674197722480,4.13284153,20961.0,20960.0,0.0132451]
[1674197722727,4.64552424,20961.0,20960.0,0.0132451]
[1674197722980,3.69113625,20961.0,20960.0,0.0132451]
[1674197723237,3.91890943,20961.0,20960.0,0.0132451]
[1674197724004,4.15813636,20961.0,20960.0,0.0132451]
[1674197724252,3.91890943,20961.0,20960.0,0.0132451]
[1674197724534,3.69113625,20961.0,20960.0,0.0132451]
[1674197725810,4.15886197,20961.0,20960.0,0.0132451]
[1674197726061,4.37062339,20961.0,20960.0,0.0132451]
[1674197726309,4.15886197,20961.0,20960.0,0.0132451]
[1674197726596,4.88553433,20961.0,20960.0,0.0132451]
[1674197727289,4.60082011,20961.0,20960.0,0.0132451]
[1674197728037,3.77419675,20961.0,20960.0,0.0132451]
[1674197728302,3.7018751,20961.0,20960.0,0.0132451]
[1674197728555,3.47419675,20961.0,20960.0,0.0132451]
[1674197728811,3.23220171,20961.0,20960.0,0.0132451]
[1674197729057,3.71428995,20961.0,20960.0,0.0132451]
[1674197729311,3.94196601,20961.0,20960.0,0.0132451]
[1674197729824,3.95072945,20961.0,20960.0,0.0132451]
[1674197730579,3.7230528,20961.0,20960.0,0.0132451]
[1674197730801,3.95070825,20961.0,20960.0,0.0132451]
[1674197731023,3.7230528,20961.0,20960.0,0.0132451]
[1674197731276,4.67747298,20961.0,20960.0,0.0132451]
[1674197731522,4.39288942,20961.0,20960.0,0.0132451]
[1674197731804,4.6774251,20961.0,20960.0,0.0132451]
[1674197732025,4.39288942,20961.0,20960.0,0.0132451]
[1674197732311,5.32599514,20961.0,20960.0,0.0132451]
[1674197732831,4.98386542,20961.0,20960.0,0.0132451]
[1674197733080,4.56557257,20961.0,20960.0,0.0132451]
[1674197733335,3.37178119,20961.0,20960.0,0.0132451]
[1674197734109,0.19564491,20960.0,20958.0,0.01503306]
[1674197734368,0.19564491,20960.0,20957.0,0.20909968]
[1674197734369,1.06803458,20960.0,20957.0,0.20909968]
[1674197734622,1.06803458,20960.0,20957.0,0.00147968]
[1674197734623,1.25857846,20960.0,20957.0,0.00147968]
[1674197734879,0.210278,20959.0,20957.0,0.00147968]
[1674197735129,1.06804858,20960.0,20957.0,0.00147968]
[1674197735418,0.1893703,20959.0,20957.0,0.00147968]
[1674197735952,0.097,20959.0,20958.0,0.4450428]
[1674197736168,0.097,20959.0,20958.0,0.63936377]
[1674197736439,0.097,20959.0,20958.0,1.9512628]
[1674197736703,0.097,20959.0,20958.0,2.25887222]
[1674197737263,0.1816916,20961.0,20958.0,2.25887222]
[1674197737515,0.1816916,20961.0,20960.0,0.326]
[1674197738075,0.30033773,20963.0,20960.0,0.326]
[1674197738318,0.30033773,20963.0,20961.0,0.2137]
[1674197738576,0.30033773,20963.0,20961.0,0.1137]
[1674197739094,0.27551515,20963.0,20961.0,0.1137]
[1674197739602,0.089,20963.0,20962.0,0.2267]
[1674197739881,0.28010348,20963.0,20962.0,0.2267]
[1674197740138,0.089,20963.0,20962.0,0.2267]
[1674197740399,0.31077731,20963.0,20962.0,0.2267]
[1674197740657,0.22177731,20963.0,20962.0,0.2267]
[1674197740919,0.30577731,20963.0,20962.0,0.2267]
[1674197741192,0.22177731,20963.0,20962.0,0.2267]
[1674197741446,0.51605531,20963.0,20962.0,0.2277]
[1674197742792,0.30577731,20963.0,20962.0,0.2277]
[1674197743065,0.30577731,20963.0,20962.0,0.1149]
[1674197743385,0.51605531,20963.0,20962.0,0.1149]
[1674197744079,0.62987789,20963.0,20962.0,0.1149]
[1674197746144,0.51605531,20963.0,20962.0,0.1149]
[1674197747106,0.54577731,20963.0,20962.0,0.1149]
[1674197748576,0.75605531,20963.0,20962.0,0.001]
[1674197748841,1.10952081,20963.0,20962.0,0.001]
[1674197749078,0.86987789,20963.0,20962.0,0.001]
[1674197749334,0.96987789,20963.0,20962.0,0.001]
[1674197749847,2.09464746,20963.0,20962.0,0.001]
[1674197750105,1.98932488,20963.0,20962.0,0.001]
[1674197750372,2.52477881,20963.0,20962.0,0.001]
[1674197750649,2.29717144,20963.0,20962.0,0.001]
[1674197751189,2.24027198,20963.0,20962.0,0.001]
[1674197751728,1.93242542,20963.0,20962.0,0.001]
[1674197752552,2.10313499,20963.0,20962.0,0.001]
[1674197755925,1.88135768,20963.0,20962.0,0.001]
[1674197756183,2.00005799,20963.0,20962.0,0.001]
[1674197756697,2.11385909,20963.0,20962.0,0.001]
[1674197756956,2.00005799,20963.0,20962.0,0.001]
[1674197757211,2.42415,20963.0,20962.0,0.001]
[1674197757484,2.31034786,20963.0,20962.0,0.001]
[1674197757745,2.42415617,20963.0,20962.0,0.001]
[1674197759032,2.1138663,20963.0,20962.0,0.001]
[1674197760595,2.01387526,20963.0,20962.0,0.00090786]
[1674197762453,1.84316569,20963.0,20962.0,0.00090786]
[1674197762778,2.01387526,20963.0,20962.0,0.00090786]
[1674197763566,1.90005799,20963.0,20962.0,0.00090786]
[1674197764106,0.22976515,20962.0,20959.0,0.88847767]
[1674197764351,0.9915847,20962.0,20959.0,0.58086825]
[1674197764609,0.210278,20961.0,20959.0,0.58086825]
[1674197764852,0.70682915,20962.0,20959.0,0.58086825]
[1674197765387,0.210278,20961.0,20959.0,0.58086825]
[1674197765599,1.29772749,20962.0,20959.0,0.58086825]
[1674197765848,0.210278,20961.0,20959.0,0.58086825]
[1674197766108,1.38273049,20962.0,20959.0,0.58186825]
[1674197766363,1.26888515,20962.0,20959.0,0.58186825]
[1674197766886,0.25155107,20961.0,20959.0,0.58186825]
[1674197767151,0.210278,20960.0,20959.0,0.58186825]
[1674197767399,0.25155107,20961.0,20959.0,0.58186825]
[1674197767908,0.25155107,20961.0,20959.0,0.58086825]
[1674197768177,0.25155107,20961.0,20959.0,0.58186825]
[1674197768178,0.085,20960.0,20959.0,0.58186825]
[1674197769270,0.25155107,20961.0,20959.0,0.58086825]
[1674197769806,0.085,20960.0,20959.0,0.58186825]
[1674197770055,0.25155107,20961.0,20959.0,0.58086825]
[1674197770328,0.33655107,20961.0,20959.0,0.58186825]
[1674197770675,0.25155107,20961.0,20959.0,0.58086825]
[1674197770901,0.085,20960.0,20959.0,0.58186825]
[1674197771180,0.210278,20960.0,20959.0,0.1128]
[1674197771439,0.210278,20960.0,20959.0,0.1138]
[1674197772251,0.32410934,20960.0,20959.0,0.1128]
[1674197772522,0.210278,20960.0,20959.0,0.1138]
[1674197772777,0.295278,20960.0,20959.0,0.1138]
[1674197773033,0.295278,20960.0,20959.0,0.001]
[1674197773312,0.40910934,20960.0,20959.0,0.001]
[1674197774346,1.30795947,20960.0,20959.0,0.001]
[1674197774898,1.69915952,20960.0,20959.0,0.001]
[1674197775205,1.17069394,20960.0,20959.0,0.001]
[1674197775471,2.29064825,20960.0,20959.0,0.001]
[1674197775719,2.00614492,20960.0,20959.0,0.001]
[1674197775965,2.47441142,20960.0,20959.0,0.001]
[1674197776242,2.93140186,20960.0,20959.0,0.001]
[1674197776499,3.66634563,20960.0,20959.0,0.001]
[1674197776770,3.3818423,20960.0,20959.0,0.001]
[1674197777344,3.90663642,20960.0,20959.0,0.001]
[1674197777595,3.90663402,20960.0,20959.0,0.001]
[1674197777900,3.6218423,20960.0,20959.0,0.001]
[1674197778149,3.90663132,20960.0,20959.0,0.001]
[1674197778401,3.3218423,20960.0,20959.0,0.001]
[1674197778712,2.65221499,20960.0,20959.0,0.001]
[1674197779249,2.87997965,20960.0,20959.0,0.001]
[1674197779503,2.65221499,20960.0,20959.0,0.001]
[1674197779768,3.90666725,20960.0,20959.0,0.001]
[1674197780053,3.90667835,20960.0,20959.0,0.001]
[1674197780312,2.66742191,20960.0,20959.0,0.001]
[1674197780572,3.9065713,20960.0,20959.0,0.001]
[1674197780802,3.17987884,20960.0,20959.0,0.001]
[1674197781591,0.10139739,20958.0,20957.0,0.00147968]
[1674197781862,2.28137135,20958.0,20957.0,0.00147968]
[1674197782118,3.50294384,20958.0,20957.0,0.00147968]
[1674197782379,2.67781494,20958.0,20957.0,0.00147968]
[1674197782642,2.76881214,20958.0,20957.0,0.00147968]
[1674197782902,2.45011257,20958.0,20957.0,0.00147968]
[1674197783178,2.54104235,20958.0,20957.0,0.00147968]
[1674197783659,3.50709081,20958.0,20957.0,0.00147968]
[1674197783917,3.58705743,20958.0,20957.0,0.00147968]
[1674197784169,4.17651981,20958.0,20957.0,0.00147968]
[1674197784943,4.37019768,20958.0,20957.0,0.00147968]
[1674197785317,3.50659146,20958.0,20957.0,0.00147968]
[1674197785469,4.17649455,20958.0,20957.0,0.00147968]
[1674197785739,4.87649456,20958.0,20957.0,0.00147968]
[1674197785997,4.78549456,20958.0,20957.0,0.00147968]
[1674197786257,3.90146857,20958.0,20957.0,0.00147968]
[1674197786772,4.12909102,20958.0,20957.0,0.00147968]
[1674197787284,2.76797817,20958.0,20957.0,0.00147968]
[1674197787760,2.67697817,20958.0,20957.0,0.00147968]
[1674197788042,2.76797817,20958.0,20957.0,0.00147968]
[1674197788555,2.96858803,20958.0,20957.0,0.00147968]
[1674197788815,3.34462375,20958.0,20957.0,0.00147968]
[1674197789085,3.40150321,20958.0,20957.0,0.00147968]
[1674197789326,3.62884449,20958.0,20957.0,0.00147968]
[1674197789578,2.59704867,20958.0,20957.0,0.00147968]
[1674197789845,2.76764911,20958.0,20957.0,0.00147968]
[1674197790415,3.46764912,20958.0,20957.0,0.00147968]
[1674197790885,3.84355473,20958.0,20957.0,0.00147968]
[1674197791141,3.29704868,20958.0,20957.0,0.00147968]
[1674197791389,3.46762069,20958.0,20957.0,0.00147968]
[1674197791676,3.24015938,20958.0,20957.0,0.00147968]
[1674197791861,3.46762069,20958.0,20957.0,0.00147968]
[1674197792627,4.60881968,20958.0,20957.0,0.00147968]
[1674197792881,4.43508655,20958.0,20957.0,0.00147968]
[1674197793146,3.90001582,20958.0,20957.0,0.00147968]
[1674197793413,4.20762524,20958.0,20957.0,0.00147968]
[1674197793665,4.32020022,20958.0,20957.0,0.00147968]
[1674197793921,4.37922238,20958.0,20957.0,0.00147968]
[1674197794227,0.1,20957.0,20953.0,0.0153168]
[1674197794466,0.1135,20954.0,20953.0,0.0153168]
[1674197794739,1.278248,20954.0,20953.0,0.0153168]
[1674197795247,1.85483847,20954.0,20953.0,0.0153168]
[1674197795540,1.286748,20954.0,20953.0,0.0153168]
[1674197795768,1.677748,20954.0,20953.0,0.0153168]
[1674197796032,1.91863724,20954.0,20953.0,0.0153168]
[1674197796800,1.52763724,20954.0,20953.0,0.0153168]
[1674197797060,1.88212382,20954.0,20953.0,0.05411152]
[1674197797331,1.49112382,20954.0,20953.0,0.05411152]
[1674197797577,1.58212382,20954.0,20953.0,0.05411152]
[1674197797830,1.46862382,20954.0,20953.0,0.05411152]
[1674197798316,1.70862382,20954.0,20953.0,0.05411152]
[1674197809468,1.61762382,20954.0,20953.0,0.05411152]
[1674197809746,1.70062382,20954.0,20953.0,0.05511152]
[1674197809998,1.61762382,20954.0,20953.0,0.05411152]
[1674197810279,1.70062382,20954.0,20953.0,0.05511152]
[1674197811490,1.46062382,20954.0,20953.0,0.05511152]
[1674197811760,1.256248,20954.0,20953.0,0.05511152]
[1674197812015,0.293278,20954.0,20953.0,0.42338859]
[1674197812294,0.083,20954.0,20953.0,0.42338859]
[1674197812805,0.083,20954.0,20953.0,1.32067412]
[1674197813049,0.67707331,20957.0,20953.0,1.65023212]
[1674197813302,0.076,20954.0,20953.0,1.09496756]
[1674197813584,0.1136806,20958.0,20953.0,1.42920845]
[1674197813827,0.19167405,20958.0,20954.0,1.03820489]
[1674197814106,0.30535465,20958.0,20954.0,2.01834323]
[1674197814339,0.30535465,20958.0,20954.0,1.95924134]
[1674197814591,0.47587555,20958.0,20954.0,1.95924134]
[1674197814845,0.47587555,20958.0,20954.0,2.15356231]
[1674197815612,0.55187555,20958.0,20954.0,1.95924134]
[1674197815869,0.30535465,20958.0,20954.0,1.95924134]
[1674197816217,0.38135465,20958.0,20954.0,2.15456231]
[1674197816640,0.38135465,20958.0,20955.0,0.55235676]
[1674197816876,0.38135465,20958.0,20955.0,1.12388973]
[1674197817129,0.26767405,20958.0,20955.0,0.92956876]
[1674197817390,0.26767405,20958.0,20956.0,0.1136]
[1674197817391,0.076,20958.0,20956.0,0.1136]
[1674197817643,0.076,20958.0,20956.0,0.690783]
[1674197817900,0.076,20958.0,20956.0,0.590783]
[1674197818196,0.316,20958.0,20956.0,0.590783]
[1674197818437,0.24,20958.0,20956.0,0.690783]
[1674197818697,0.31593078,20958.0,20956.0,0.590783]
[1674197818921,0.23993078,20958.0,20956.0,0.99312191]
[1674197819152,0.31593078,20958.0,20957.0,0.36375083]
[1674197820780,0.39193078,20958.0,20957.0,0.36475083]
[1674197821608,0.39193078,20958.0,20957.0,0.001]
[1674197826232,0.152,20958.0,20957.0,0.001]
[1674197828523,0.152,20958.0,20957.0,0.37390462]
[1674197829058,0.392,20958.0,20957.0,0.37390462]
[1674197829583,0.392,20958.0,20957.0,0.001]
[1674197829834,0.59448418,20958.0,20957.0,0.001]
[1674197830090,1.25034621,20958.0,20956.0,0.001]
[1674197830387,0.1136806,20957.0,20956.0,0.001]
[1674197830628,0.8011256,20957.0,20956.0,0.001]
[1674197830883,1.5782926,20957.0,20953.0,0.46065632]
[1674197831141,2.01706913,20957.0,20953.0,0.05411152]
[1674197831404,1.23893881,20957.0,20956.0,0.001]
[1674197831754,1.23893881,20957.0,20954.0,0.43661077]
[1674197831755,1.164612,20957.0,20954.0,0.43661077]
[1674197832176,0.41326589,20956.0,20954.0,0.43661077]
[1674197832439,0.20298789,20956.0,20954.0,0.43661077]
[1674197832698,0.210278,20955.0,20953.0,0.51037897]
[1674197832969,0.20298789,20956.0,20954.0,0.001]
[1674197834221,0.20298789,20956.0,20953.0,0.62427897]
[1674197834479,0.27998789,20956.0,20954.0,0.001]
[1674197834990,0.210278,20955.0,20954.0,0.001]
[1674197835246,0.27998789,20956.0,20954.0,0.001]
[1674197835837,0.210278,20955.0,20954.0,0.001]
[1674197836079,0.210278,20955.0,20953.0,0.62427897]
[1674197836334,0.07,20955.0,20954.0,0.002]
[1674197837365,0.07,20955.0,20953.0,0.16801152]
[1674197837366,0.45812298,20955.0,20953.0,0.16801152]
[1674197837630,0.72505898,20955.0,20954.0,0.002]
[1674197837897,0.93533698,20955.0,20953.0,0.16801152]
[1674197838176,0.79505898,20955.0,20954.0,0.002]
[1674197838449,1.00533698,20955.0,20954.0,0.002]
[1674197838673,1.48254998,20955.0,20954.0,0.002]
[1674197838900,1.48254998,20955.0,20953.0,0.16801152]
[1674197838901,1.20227198,20955.0,20953.0,0.16801152]
[1674197839170,0.210278,20954.0,20953.0,0.17001152]
[1674197839425,1.20229198,20955.0,20953.0,0.16801152]
[1674197839679,0.24108121,20954.0,20953.0,0.16801152]
[1674197840973,0.31108121,20954.0,20953.0,0.17001152]
[1674197843014,0.07,20954.0,20953.0,0.05611152]
[1674197844033,0.2553315,20954.0,20953.0,0.05611152]